bitfinex/quotes_SOLUSD_20241122
["timestamp","ask_amount","ask_price","bid_price","bid_amount"]
[1732301984857,12.25804281,252.68,252.61,23.776884]
[1732301985158,12.25804281,252.68,252.62,20.0]
[1732301985159,2.91398473,252.67,252.62,20.0]
[1732301985354,12.25804281,252.68,252.62,20.0]
[1732301985554,2.91357365,252.67,252.6,20.0]
[1732301985856,12.25804281,252.71,252.62,20.0]
[1732301986162,2.9135772,252.7,252.62,20.0]
[1732301986482,2.9135772,252.69,252.62,20.0]
[1732301986774,12.25804281,252.71,252.62,20.0]
[1732301987085,12.25804281,252.69,252.62,20.0]
[1732301988661,12.25804281,252.71,252.64,20.0]
[1732301988860,12.25804281,252.73,252.64,20.0]
[1732301989656,12.25804281,252.73,252.66,20.0]
[1732301990002,12.09300612,252.81,252.61,23.776884]
[1732301990003,12.25804281,252.75,252.68,20.0]
[1732301992175,12.25804281,252.73,252.65,32.25804281]
[1732301992361,12.25804281,252.75,252.69,20.0]
[1732301996771,12.25804281,252.77,252.7,23.776884]
[1732301996972,12.25804281,252.77,252.71,20.0]
[1732301997589,12.25804281,252.77,252.7,20.0]
[1732302000691,12.25804281,252.73,252.68,20.0]
[1732302001384,12.25804281,252.71,252.68,20.0]
[1732302001588,12.25804281,252.69,252.6,27.61214281]
[1732302001992,12.25804281,252.69,252.62,12.25804281]
[1732302003078,12.25804281,252.69,252.63,20.0]
[1732302003893,12.25804281,252.67,252.61,20.0]
[1732302004205,12.25804281,252.65,252.61,20.0]
[1732302004377,12.25804281,252.65,252.49,14.758043]
[1732302004378,12.25804281,252.65,252.59,20.0]
[1732302004576,12.25804281,252.72,252.54,16.3286]
[1732302004577,12.25804281,252.63,252.54,28.58664281]
[1732302004796,12.25804281,252.63,252.56,12.25804281]
[1732302005398,12.25804281,252.65,252.56,12.25804281]
[1732302005576,12.25804281,252.65,252.54,16.3286]
[1732302005577,12.25804281,252.69,252.6,12.25804281]
[1732302005785,12.25804281,252.69,252.61,20.0]
[1732302005979,12.25804281,252.71,252.62,12.25804281]
[1732302006302,16.1016,252.76,252.65,20.0]
[1732302006303,12.25804281,252.73,252.65,20.0]
[1732302006486,12.25804281,252.75,252.67,20.0]
[1732302006699,15.9175,252.83,252.69,43.776884]
[1732302006700,12.25804281,252.77,252.69,43.776884]
[1732302006893,12.25804281,252.77,252.7,12.25804281]
[1732302007099,12.25804281,252.77,252.72,20.0]
[1732302007307,12.25804281,252.79,252.72,20.0]
[1732302007511,12.25804281,252.81,252.74,32.25804281]
[1732302007803,15.1761,252.89,252.76,20.0]
[1732302007804,12.25804281,252.83,252.76,20.0]
[1732302008005,12.25804281,252.82,252.76,20.0]
[1732302008183,12.25804281,252.81,252.76,20.0]
[1732302008383,12.25804281,252.81,252.74,12.25804281]
[1732302008384,12.25804281,252.81,252.75,20.0]
[1732302008603,12.25804281,252.82,252.75,20.0]
[1732302008893,12.25804281,252.8,252.74,20.0]
[1732302009088,12.25804281,252.81,252.74,32.25804281]
[1732302009895,15.1761,252.89,252.74,20.0]
[1732302009896,12.25804281,252.78,252.74,20.0]
[1732302010094,12.25804281,252.78,252.71,20.0]
[1732302010299,12.25804281,252.75,252.71,20.0]
[1732302010806,12.25804281,252.75,252.7,43.776884]
[1732302010985,12.25804281,252.77,252.7,20.0]
[1732302011705,12.25804281,252.81,252.73,12.25804281]
[1732302011891,12.25804281,252.81,252.74,20.0]
[1732302013203,12.25804281,252.83,252.76,20.0]
[1732302013407,12.25804281,252.85,252.78,20.0]
[1732302014786,12.25804281,252.85,252.78,35.6408]
[1732302015187,12.25804281,252.81,252.73,32.25804281]
[1732302017684,12.25804281,252.77,252.73,20.0]
[1732302017906,12.25804281,252.77,252.72,15.6408]
[1732302018204,12.25804281,252.85,252.72,15.6408]
[1732302018205,12.25804281,252.79,252.72,15.6408]
[1732302018506,12.25804281,252.83,252.73,12.25804281]
[1732302018689,12.25804281,252.83,252.75,12.25804281]
[1732302019005,12.25804281,252.83,252.76,20.0]
[1732302019200,12.25804281,252.79,252.73,20.0]
[1732302019403,12.25804281,252.85,252.73,20.0]
[1732302019404,12.25804281,252.77,252.73,20.0]
[1732302020203,12.25804281,252.75,252.72,15.6408]
[1732302020411,12.25804281,252.73,252.65,28.06244281]
[1732302021293,12.25804281,252.75,252.67,12.25804281]
[1732302021499,12.25804281,252.75,252.65,15.8044]
[1732302021500,12.25804281,252.73,252.66,20.0]
[1732302022007,12.25804281,252.73,252.65,15.8044]
[1732302023315,12.25804281,252.73,252.66,20.0]
[1732302024098,12.25804281,252.71,252.66,20.0]
[1732302025105,12.25804281,252.73,252.66,20.0]
[1732302025900,27.35284587,252.85,252.66,20.0]
[1732302025901,12.25804281,252.75,252.67,12.25804281]
[1732302026217,12.25804281,252.75,252.68,20.0]
[1732302026724,12.25804281,252.77,252.7,20.0]
[1732302027295,12.25804281,252.81,252.72,20.0]
[1732302027694,12.25804281,252.79,252.72,20.0]
[1732302028012,12.25804281,252.77,252.72,20.0]
[1732302028312,12.25804281,252.75,252.7,20.0]
[1732302029126,12.25804281,252.73,252.65,28.06244281]
[1732302029997,12.25804281,252.71,252.65,15.8044]
[1732302030414,12.25804281,252.71,252.57,5.11560033]
[1732302030415,12.25804281,252.67,252.59,27.59924281]
[1732302030799,12.25804281,252.69,252.61,12.25804281]
[1732302031604,6.2732,252.8,252.59,15.3412]
[1732302031605,23.776884,252.79,252.64,20.0]
[1732302031812,12.25804281,252.77,252.69,20.0]
[1732302032713,12.25804281,252.84,252.77,20.0]
[1732302032897,2.91292127,252.83,252.77,20.0]
[1732302033098,12.25804281,252.82,252.77,20.0]
[1732302033423,12.25804281,252.82,252.75,20.0]
[1732302033623,12.25804281,252.8,252.73,20.0]
[1732302035824,6.04650306,252.89,252.74,36.03492681]
[1732302036123,12.09300612,252.91,252.81,20.0]
[1732302036124,2.91292237,252.88,252.81,20.0]
[1732302036323,12.25804281,252.89,252.81,20.0]
[1732302038406,12.25804281,252.83,252.77,20.0]
[1732302038711,12.25804281,252.83,252.75,20.0]
[1732302040108,12.25804281,252.83,252.76,12.25804281]
[1732302040419,12.25804281,252.85,252.77,20.0]
[1732302040618,12.25804281,252.85,252.79,20.0]
[1732302041319,12.25804281,252.85,252.77,20.0]
[1732302041926,12.25804281,252.85,252.78,12.25804281]
[1732302042127,12.25804281,252.87,252.79,20.0]
[1732302042425,12.25804281,252.89,252.81,20.0]
[1732302042602,12.25804281,252.91,252.83,20.0]
[1732302042804,11.25804281,252.91,252.85,20.0]
[1732302044028,11.25804281,252.91,252.83,20.0]
[1732302044208,12.25804281,252.89,252.83,20.0]
[1732302045610,12.25804281,252.91,252.83,20.0]
[1732302046616,12.25804281,252.89,252.83,20.0]
[1732302047131,12.25804281,252.87,252.83,20.0]
[1732302047330,2.25804281,252.87,252.83,20.0]
[1732302047629,12.25804281,252.86,252.83,20.0]
[1732302050731,12.25804281,252.95,252.87,20.0]
[1732302051541,12.25804281,252.93,252.87,20.0]
[1732302052928,12.25804281,252.95,252.88,36.03492681]
[1732302053119,15.892,253.05,252.88,36.03492681]
[1732302053120,12.25804281,252.98,252.97,122.14195719]
[1732302053323,12.25804281,252.98,252.9,12.25804281]
[1732302053324,12.25804281,252.98,252.91,20.0]
[1732302053829,10.0354,253.08,252.88,23.776884]
[1732302053830,6.0841,253.08,252.93,20.0]
[1732302054024,12.25804281,253.01,252.93,20.0]
[1732302054240,12.25804281,252.99,252.93,20.0]
[1732302055044,12.25804281,253.01,252.93,20.0]
[1732302056335,12.25804281,253.01,252.95,20.0]
[1732302056515,11.33327262,253.2,252.86,13.9486779]
[1732302056516,6.04650306,253.32,253.16,134.4]
[1732302056716,12.25804281,253.18,253.01,23.776884]
[1732302057038,12.25804281,253.13,253.04,20.0]
[1732302057333,22.0879,253.3,253.11,20.0]
[1732302057631,12.25804281,253.23,253.13,20.0]
[1732302057839,11.75804281,253.23,253.13,20.0]
[1732302058015,11.75804281,253.23,253.13,32.25804281]
[1732302058620,12.25804281,253.25,253.18,20.0]
[1732302058822,6.0712,253.3,253.18,20.0]
[1732302058823,19.42680175,253.26,253.18,20.0]
[1732302060419,19.42680175,253.28,253.19,19.42680175]
[1732302060724,19.42680175,253.3,253.22,20.0]
[1732302061123,19.42680175,253.32,253.24,20.0]
[1732302062116,19.42680175,253.32,253.23,19.42680175]
[1732302062117,19.42680175,253.26,253.2,20.0]
[1732302062325,19.42680175,253.22,253.16,20.0]
[1732302063033,19.42680175,253.2,253.16,20.0]
[1732302063237,59.84810175,253.37,253.1,19.42680175]
[1732302063238,19.42680175,253.18,253.1,19.42680175]
[1732302063423,19.42680175,253.2,253.12,19.42680175]
[1732302063850,19.42680175,253.18,253.1,19.42680175]
[1732302064339,19.42680175,253.2,253.12,19.42680175]
[1732302064524,19.42680175,253.22,253.12,19.42680175]
[1732302064727,19.42680175,253.22,253.14,19.42680175]
[1732302064928,19.42680175,253.22,253.08,16.3465]
[1732302064929,19.42680175,253.24,253.16,19.42680175]
[1732302065232,19.42680175,253.22,253.15,20.0]
[1732302066245,19.42680175,253.16,253.08,35.77330175]
[1732302066858,19.42680175,253.14,253.08,16.3465]
[1732302067216,19.42680175,253.12,253.08,16.3465]
[1732302067622,19.42680175,253.14,253.08,16.3465]
[1732302068029,19.42680175,253.14,253.07,6.4952]
[1732302069051,19.42680175,253.14,253.08,20.0]
[1732302070238,19.42680175,253.22,253.13,20.0]
[1732302070437,19.42680175,253.22,253.16,20.0]
[1732302070941,19.42680175,253.24,253.16,20.0]
[1732302071144,19.42680175,253.26,253.18,20.0]
[1732302071548,19.42680175,253.28,253.2,20.0]
[1732302072149,19.42680175,253.3,253.22,20.0]
[1732302073845,34.42680175,253.37,253.22,20.0]
[1732302073846,15.0,253.37,253.26,20.0]
[1732302074042,19.42680175,253.35,253.26,20.0]
[1732302074548,19.42680175,253.35,253.28,20.0]
[1732302075123,19.42680175,253.35,253.27,19.42680175]
[1732302075124,19.42680175,253.35,253.26,20.0]
[1732302075726,15.0,253.37,253.27,19.42680175]
[1732302075938,15.0,253.37,253.31,19.42680175]
[1732302076130,15.0,253.37,253.32,20.0]
[1732302076655,15.0,253.37,253.3,20.0]
[1732302077653,19.42680175,253.36,253.3,20.0]
[1732302077944,19.42680175,253.34,253.28,20.0]
[1732302078547,19.42680175,253.3,253.21,19.42680175]
[1732302078747,19.42680175,253.3,253.23,19.42680175]
[1732302078951,19.42680175,253.3,253.21,19.42680175]
[1732302079343,19.42680175,253.3,253.23,19.42680175]
[1732302079546,19.42680175,253.32,253.23,19.42680175]
[1732302079730,19.42680175,253.32,253.25,19.42680175]
[1732302079926,19.42680175,253.36,253.29,19.42680175]
[1732302080141,15.0,253.37,253.3,20.0]
[1732302080350,19.42680175,253.36,253.3,20.0]
[1732302080657,15.0,253.37,253.3,20.0]
[1732302081342,15.0,253.37,253.32,20.0]
[1732302082763,15.0,253.37,253.31,20.0]
[1732302083839,15.0,253.37,253.31,39.42680175]
[1732302084631,15.0,253.37,253.34,20.0]
[1732302087160,15.0,253.37,253.32,20.0]
[1732302087451,34.42680175,253.37,253.31,20.0]
[1732302087658,15.0,253.37,253.31,39.42680175]
[1732302088747,15.0,253.37,253.33,39.42680175]
[1732302089159,15.0,253.37,253.36,20.0]
[1732302090459,15.0,253.37,253.36,43.776884]
[1732302090754,15.0,253.37,253.36,55.89806419]
[1732302092363,6.4472,253.51,253.36,55.89806419]
[1732302092549,12.12118019,253.45,253.36,55.89806419]
[1732302092756,19.39444631,253.46,253.38,19.39444631]
[1732302092956,19.39444631,253.46,253.39,20.0]
[1732302093266,19.39444631,253.44,253.39,15.60793418]
[1732302093455,19.39444631,253.44,253.36,43.17133031]
[1732302095078,19.39444631,253.45,253.37,19.39444631]
[1732302095250,19.39444631,253.44,253.37,20.0]
[1732302095450,19.39444631,253.45,253.37,39.39444631]
[1732302095673,19.39444631,253.44,253.37,39.39444631]
[1732302095963,19.39444631,253.44,253.37,20.0]
[1732302096180,19.39444631,253.45,253.37,39.39444631]
[1732302096662,19.39444631,253.43,253.37,20.0]
[1732302096881,19.39444631,253.38,253.37,20.0]
[1732302097160,19.39444631,253.38,253.31,19.39444631]
[1732302097377,19.39444631,253.42,253.34,19.39444631]
[1732302097545,19.39444631,253.41,253.33,19.39444631]
[1732302097745,19.39444631,253.4,253.3,16.2284]
[1732302097970,19.39444631,253.4,253.33,19.39444631]
[1732302098172,19.39444631,253.41,253.34,19.39444631]
[1732302098351,19.39444631,253.42,253.35,39.39444631]
[1732302099078,19.39444631,253.44,253.35,39.39444631]
[1732302099255,19.39444631,253.44,253.37,20.0]
[1732302099668,19.39444631,253.46,253.38,19.39444631]
[1732302099856,19.39444631,253.46,253.39,20.0]
[1732302101166,19.39444631,253.52,253.44,19.39444631]
[1732302101345,19.39444631,253.52,253.41,20.0]
[1732302101346,19.39444631,253.52,253.46,19.39444631]
[1732302101548,19.39444631,253.56,253.48,19.39444631]
[1732302101781,19.39444631,253.58,253.5,19.39444631]
[1732302101959,19.39444631,253.58,253.51,20.0]
[1732302102446,19.39444631,253.6,253.52,19.39444631]
[1732302102648,19.39444631,253.6,253.54,23.776884]
[1732302102845,19.39444631,253.6,253.55,20.0]
[1732302103045,19.39444631,253.57,253.55,20.0]
[1732302103269,19.39444631,253.59,253.53,20.0]
[1732302104078,6.058,253.71,253.57,20.0]
[1732302104079,19.39444631,253.63,253.57,20.0]
[1732302104450,19.39444631,253.61,253.57,20.0]
[1732302105268,19.39444631,253.63,253.57,20.0]
[1732302105574,19.39444631,253.63,253.59,20.0]
[1732302105869,19.39444631,253.65,253.59,20.0]
[1732302106471,19.39444631,253.67,253.6,19.39444631]
[1732302106679,19.39444631,253.67,253.61,20.0]
[1732302107077,19.39444631,253.63,253.61,20.0]
[1732302107259,19.39444631,253.63,253.55,20.0]
[1732302107576,19.39444631,253.63,253.55,39.39444631]
[1732302107867,19.39444631,253.65,253.57,19.39444631]
[1732302108072,19.39444631,253.65,253.58,20.0]
[1732302108582,19.39444631,253.67,253.6,20.0]
[1732302108879,19.39444631,253.69,253.62,20.0]
[1732302109093,19.39444631,253.69,253.63,23.776884]
[1732302109257,19.39444631,253.69,253.64,20.0]
[1732302111878,19.39444631,253.71,253.64,20.0]
[1732302112078,19.39444631,253.71,253.68,20.0]
[1732302112262,19.39444631,253.69,253.68,20.0]
[1732302112465,16.4927,253.91,253.7,20.0]
[1732302112659,19.39444631,253.79,253.72,20.0]
[1732302112966,12.08887812,253.79,253.72,20.0]
[1732302113278,12.08887812,253.85,253.76,12.08887812]
[1732302113480,12.08887812,253.88,253.79,43.776884]
[1732302113671,12.08887812,253.86,253.79,43.776884]
[1732302113881,12.08887812,253.88,253.81,43.776884]
[1732302114263,12.08887812,253.9,253.81,43.776884]
[1732302114674,12.08887812,253.9,253.85,20.0]
[1732302114982,12.08887812,253.9,253.86,23.776884]
[1732302115180,12.08887812,253.92,253.87,20.0]
[1732302115487,12.08887812,253.92,253.89,20.0]
[1732302115787,12.08887812,253.9,253.83,6.4706]
[1732302116079,12.08887812,253.87,253.83,20.0]
[1732302116289,12.08887812,253.87,253.85,20.0]
[1732302116663,19.3309813,253.87,253.85,20.0]
[1732302116864,19.3309813,253.87,253.83,20.0]
[1732302118583,19.3309813,253.89,253.83,20.0]
[1732302118886,19.3309813,253.89,253.84,23.776884]
[1732302119071,19.3309813,253.89,253.87,20.0]
[1732302119278,19.3309813,253.89,253.86,23.776884]
[1732302119576,19.3309813,253.89,253.87,20.0]
[1732302120181,19.3309813,253.89,253.83,43.776884]
[1732302120573,19.3309813,253.87,253.83,43.776884]
[1732302120773,3.9356,254.09,253.89,20.0]
[1732302120984,19.3309813,253.98,253.92,23.776884]
[1732302121290,19.3309813,254.0,253.93,20.0]
[1732302121785,3.9351,254.12,253.95,20.0]
[1732302121996,19.3309813,254.0,253.95,20.0]
[1732302124678,19.3309813,254.08,253.99,20.0]
[1732302125879,19.3309813,254.06,253.99,20.0]
[1732302126171,19.3309813,254.06,253.93,6.1274]
[1732302126172,19.3309813,254.0,253.94,20.0]
[1732302126376,19.3309813,253.98,253.94,20.0]
[1732302126677,19.3309813,254.0,253.94,20.0]
[1732302127502,19.3309813,254.0,253.96,20.0]
[1732302128200,19.3309813,253.98,253.94,20.0]
[1732302128388,19.3309813,253.96,253.92,20.0]
[1732302128692,19.3309813,253.94,253.85,16.4429]
[1732302128899,19.3309813,253.96,253.88,19.3309813]
[1732302129198,19.3309813,253.96,253.85,16.4429]
[1732302129199,19.3309813,253.98,253.9,19.3309813]
[1732302129882,19.3309813,253.98,253.91,23.776884]
[1732302130697,19.3309813,253.96,253.92,20.0]
[1732302131082,19.3309813,253.93,253.85,16.4429]
[1732302131291,19.3309813,253.91,253.85,16.4429]
[1732302132196,19.3309813,253.93,253.85,16.4429]
[1732302132402,19.3309813,253.91,253.85,16.4429]
[1732302132583,19.3309813,253.91,253.86,20.0]
[1732302132984,3.9359,254.07,253.86,39.3309813]
[1732302133297,19.3309813,253.95,253.86,39.3309813]
[1732302133883,19.3309813,253.95,253.88,20.0]
[1732302134095,19.3309813,253.95,253.86,39.3309813]
[1732302135285,19.3309813,253.91,253.86,20.0]
[1732302135492,19.3309813,253.91,253.85,16.4429]
[1732302135882,19.3309813,253.93,253.85,16.4429]
[1732302136088,19.3309813,253.89,253.77,15.6992]
[1732302136281,19.3309813,253.89,253.79,19.3309813]
[1732302136483,19.3309813,253.91,253.81,19.3309813]
[1732302136682,19.3309813,253.89,253.84,20.0]
[1732302136987,19.3309813,253.87,253.84,20.0]
[1732302137185,19.3309813,253.87,253.79,19.3309813]
[1732302137387,19.3309813,253.89,253.79,19.3309813]
[1732302137798,17.7919,254.07,253.83,19.3309813]
[1732302137997,19.3309813,253.9,253.81,19.3309813]
[1732302138199,19.3309813,253.86,253.77,15.6992]
[1732302138506,19.3309813,253.84,253.77,15.6992]
[1732302138692,19.3309813,253.8,253.74,6.2046]
[1732302138891,19.3309813,253.8,253.72,19.3309813]
[1732302139093,19.3309813,253.78,253.71,15.9585]
[1732302139289,19.3309813,253.8,253.72,19.3309813]
[1732302139485,19.3309813,253.78,253.71,15.9585]
[1732302140008,19.3309813,253.76,253.71,15.9585]
[1732302140809,19.3309813,253.78,253.71,15.9585]
[1732302141513,19.3309813,253.76,253.72,20.0]
[1732302141807,19.3309813,253.78,253.72,20.0]
[1732302142013,19.3309813,253.82,253.72,45.07257506]
[1732302142309,19.3309813,253.84,253.75,20.0]
[1732302142628,19.3309813,253.84,253.77,20.0]
[1732302144301,15.2919,253.95,253.77,20.0]
[1732302144302,19.3309813,253.86,253.77,20.0]
[1732302144503,19.3309813,253.86,253.78,19.3309813]
[1732302144702,19.3309813,253.86,253.79,20.0]
[1732302144906,15.2919,253.95,253.81,20.0]
[1732302144907,19.3309813,253.88,253.81,20.0]
[1732302145416,19.3309813,253.9,253.83,20.0]
[1732302145794,19.3309813,253.92,253.85,20.0]
[1732302145989,19.3309813,253.94,253.87,20.0]
[1732302146320,19.3309813,253.96,253.89,20.0]
[1732302146612,19.3309813,253.94,253.87,20.0]
[1732302146807,19.3309813,253.96,253.89,20.0]
[1732302148091,19.3309813,253.94,253.87,20.0]
[1732302148292,19.3309813,253.9,253.86,20.0]
[1732302148492,19.3309813,253.9,253.83,20.0]
[1732302148712,19.3309813,253.88,253.83,20.0]
[1732302148919,25.7676813,254.02,253.83,20.0]
[1732302148920,19.3309813,253.9,253.83,20.0]
[1732302149408,19.3309813,253.9,253.83,39.3309813]
[1732302149607,19.3309813,253.92,253.86,20.0]
[1732302150018,19.3309813,253.9,253.86,20.0]
[1732302150319,19.3309813,254.02,253.84,20.0]
[1732302150320,19.3309813,253.92,253.84,20.0]
[1732302150631,19.3309813,253.92,253.86,20.0]
[1732302150922,19.3309813,253.94,253.86,20.0]
[1732302151416,19.3309813,253.92,253.86,20.0]
[1732302151807,19.3309813,253.9,253.84,43.776884]
[1732302152011,19.3309813,253.92,253.85,19.3309813]
[1732302152210,19.3309813,253.92,253.86,43.776884]
[1732302154120,19.3309813,253.92,253.81,6.4153]
[1732302154121,19.3309813,253.88,253.82,20.0]
[1732302154307,19.3309813,253.86,253.84,20.0]
[1732302154699,19.3309813,253.86,253.81,6.4153]
[1732302154909,19.3309813,253.88,253.81,6.4153]
[1732302155511,19.3309813,253.92,253.85,20.0]
[1732302156115,19.3309813,253.92,253.87,20.0]
[1732302156721,19.3309813,253.9,253.85,20.0]
[1732302156899,19.3309813,253.9,253.83,20.0]
[1732302158397,19.3309813,253.88,253.83,20.0]
[1732302158796,12.07958184,253.88,253.83,20.0]
[1732302158997,12.07958184,253.9,253.83,20.0]
[1732302159200,12.07958184,253.92,253.84,12.07958184]
[1732302159504,12.07958184,253.92,253.85,20.0]
[1732302161318,12.07958184,253.9,253.85,20.0]
[1732302161513,12.07958184,253.9,253.82,17.32594454]
[1732302161514,12.07958184,253.88,253.83,20.0]
[1732302161820,12.07958184,253.84,253.71,15.0903]
[1732302162020,12.07958184,253.89,253.73,12.07958184]
[1732302162021,12.07958184,253.81,253.73,12.07958184]
[1732302162621,12.07958184,253.83,253.75,12.07958184]
[1732302162820,12.07958184,253.83,253.71,20.33563056]
[1732302162821,19.33364793,253.86,253.77,19.33364793]
[1732302162996,19.33364793,253.86,253.8,20.0]
[1732302163196,19.33364793,253.86,253.79,19.33364793]
[1732302163197,19.33364793,253.88,253.82,20.0]
[1732302163417,19.33364793,253.9,253.82,20.0]
[1732302163629,19.33364793,253.88,253.82,20.0]
[1732302164299,19.33364793,253.9,253.84,15.9488]
[1732302164497,19.33364793,253.92,253.85,20.0]
[1732302165023,19.33364793,253.92,253.85,39.33364793]
[1732302166925,19.33364793,253.92,253.85,20.0]
[1732302167908,19.33364793,253.9,253.85,20.0]
[1732302169420,19.33364793,253.92,253.85,39.33364793]
[1732302169622,19.33364793,253.93,253.85,39.33364793]
[1732302172011,15.4382,254.05,253.93,20.0]
[1732302172331,19.33364793,253.95,253.93,20.0]
[1732302172512,19.33364793,253.94,253.93,20.0]
[1732302172719,19.33364793,253.97,253.91,20.0]
[1732302173027,19.33364793,253.98,253.91,20.0]
[1732302173529,19.33364793,253.97,253.91,20.0]
[1732302173840,19.33364793,253.98,253.92,23.776884]
[1732302174024,19.33364793,253.98,253.93,20.0]
[1732302174420,19.33364793,254.0,253.95,20.0]
[1732302174924,19.33364793,254.03,253.95,39.33364793]
[1732302175138,19.33364793,254.05,253.98,23.776884]
[1732302175317,19.33364793,254.05,253.99,20.0]
[1732302175723,19.33364793,254.08,254.01,20.0]
[1732302176537,19.33364793,254.05,253.99,20.0]
[1732302176833,19.33364793,254.04,253.99,20.0]
[1732302177526,19.33364793,254.01,253.99,20.0]
[1732302177723,19.33364793,254.01,253.97,20.0]
[1732302182429,19.33364793,254.15,253.99,19.33364793]
[1732302182634,19.33364793,254.15,253.97,20.0]
[1732302182635,19.33364793,254.05,254.0,20.0]
[1732302183008,19.33364793,254.09,254.02,20.0]
[1732302183209,19.33364793,254.09,254.03,23.776884]
[1732302183414,19.33364793,254.11,254.04,20.0]
[1732302183822,19.33364793,254.13,254.06,20.0]
[1732302184331,19.33364793,254.13,254.08,20.0]
[1732302184737,12.0587318,254.1,254.08,20.0]
[1732302185352,12.0587318,254.09,254.04,20.0]
[1732302185550,12.0587318,254.05,254.04,20.0]
[1732302185926,12.0587318,254.05,253.98,25.13328318]
[1732302186148,12.0587318,254.07,253.99,12.0587318]
[1732302186333,12.0587318,254.09,254.02,20.0]
[1732302186539,12.0587318,254.07,254.02,20.0]
[1732302186744,12.0587318,254.09,254.02,20.0]
[1732302187046,12.0587318,254.09,254.02,37.4653589]
[1732302187241,12.0587318,254.11,254.05,23.776884]
[1732302187445,12.0587318,254.11,254.06,20.0]
[1732302187661,12.0587318,254.11,254.08,20.0]
[1732302187953,12.0587318,254.11,254.1,20.0]
[1732302188249,12.0587318,254.11,254.1,43.776884]
[1732302192053,12.0587318,254.13,254.1,43.776884]
[1732302192250,12.0587318,254.15,254.13,23.776884]
[1732302192449,12.0587318,254.15,254.14,20.0]
[1732302192638,12.0587318,254.17,254.14,20.0]
[1732302192950,12.0587318,254.17,254.11,23.776884]
[1732302193266,12.0587318,254.15,254.12,20.0]
[1732302195488,12.0587318,254.15,254.13,23.776884]
[1732302195685,21.5831,254.3,254.14,20.0]
[1732302195957,12.0587318,254.19,254.14,20.0]
[1732302196141,5.14856094,254.37,254.14,20.0]
[1732302196461,12.0587318,254.25,254.18,20.0]
[1732302197053,12.0587318,254.27,254.18,43.776884]
[1732302197757,12.0587318,254.27,254.2,20.0]
[1732302199665,12.0587318,254.25,254.19,20.0]
[1732302199964,12.0587318,254.21,254.14,23.776884]
[1732302200764,12.0587318,254.23,254.16,23.776884]
[1732302201260,12.0587318,254.23,254.17,20.0]
[1732302201460,12.0587318,254.23,254.16,20.0]
[1732302202461,12.0587318,254.19,254.14,20.0]
[1732302202686,12.0587318,254.19,254.12,23.776884]
[1732302203162,12.0587318,254.19,254.11,12.0587318]
[1732302203347,12.0587318,254.17,254.1,11.60685887]
[1732302203744,12.0587318,254.15,254.1,5.22595887]
[1732302204057,12.0587318,254.15,254.05,5.4066271]
[1732302204058,12.0587318,254.15,254.07,12.0587318]
[1732302204248,12.0587318,254.11,254.04,6.4839]
[1732302204441,12.0587318,254.15,254.07,12.0587318]
[1732302204643,12.0587318,254.19,254.11,12.0587318]
[1732302204856,12.0587318,254.21,254.13,12.0587318]
[1732302205550,12.0587318,254.23,254.15,12.0587318]
[1732302205869,12.0587318,254.23,254.16,20.0]
[1732302207167,12.0587318,254.21,254.16,20.0]
[1732302208551,12.0587318,254.17,254.14,20.0]
[1732302209369,12.0587318,254.15,254.14,20.0]
[1732302209577,12.0587318,254.15,254.04,18.5426318]
[1732302209863,12.0587318,254.06,253.98,6.1863]
[1732302210071,12.0587318,254.15,253.93,12.0587318]
[1732302210072,12.0587318,254.0,253.93,12.0587318]
[1732302210246,12.0587318,254.0,253.92,6.1863]
[1732302210566,12.0587318,254.0,253.89,27.7118318]
[1732302211353,12.0587318,254.0,253.91,5.25069827]
[1732302211564,12.0587318,254.0,253.91,17.30943007]
[1732302211764,12.0587318,254.0,253.92,20.0]
[1732302211973,12.0587318,253.98,253.89,27.7118318]
[1732302212162,12.0587318,253.94,253.86,11.42669066]
[1732302212354,12.0587318,253.94,253.86,5.24039066]
[1732302212548,12.0587318,253.94,253.85,12.0587318]